bitfinex-derivatives/quotes_ETHF0:USTF0_20250410
["timestamp","ask_amount","ask_price","bid_price","bid_amount"]
[1744308337723,2.1556,1517.5,1517.4,1.31894]
[1744308338227,3.47445,1517.5,1517.4,1.31894]
[1744308338526,3.47447,1517.5,1517.3,0.00987557]
[1744308338826,3.47445,1517.5,1517.4,1.31894]
[1744308339125,2.1556,1517.5,1517.4,1.31894]
[1744308339327,1.31894,1517.4,1517.3,0.00987557]
[1744308339528,4.52674,1517.4,1517.3,0.00987557]
[1744308339726,11.52194,1517.4,1517.3,0.00987557]
[1744308339929,3.29793,1517.2,1516.8,3.2078]
[1744308340121,1.31944,1516.9,1516.6,5.35417]
[1744308340321,1.31944,1516.9,1516.8,1.31943]
[1744308340619,1.3195,1516.8,1516.7,1.3195]
[1744308340815,1.31957,1516.7,1516.6,1.31956]
[1744308341025,9.0598,1516.9,1516.4,3.29952]
[1744308341225,1.31961,1516.7,1516.6,1.31961]
[1744308341420,1.31961,1516.7,1516.6,4.52743]
[1744308341421,0.00987557,1516.7,1516.6,4.52743]
[1744308341822,1.32941557,1516.7,1516.6,1.31963]
[1744308342018,0.00987557,1516.7,1516.6,1.31963]
[1744308342622,1.32941557,1516.7,1516.6,1.31963]
[1744308342924,1.31963,1516.6,1516.5,0.00987557]
[1744308343121,2.14,1516.6,1516.5,1.32959557]
[1744308343723,3.45963,1516.6,1516.5,0.00987557]
[1744308344117,12.52703,1516.6,1516.5,0.00987557]
[1744308344830,7.52703,1516.6,1516.5,0.00987557]
[1744308345133,6.2074,1516.6,1516.5,1.32959557]
[1744308345318,2.14,1516.6,1516.5,1.32959557]
[1744308346119,3.45963,1516.6,1516.5,1.32959557]
[1744308346324,0.00987557,1516.7,1516.5,1.32959557]
[1744308346325,0.00987557,1516.7,1516.6,1.31963]
[1744308346617,0.00987557,1516.7,1516.6,3.33333]
[1744308346823,0.00987557,1516.7,1516.6,8.33333]
[1744308347424,0.00987557,1516.7,1516.5,1.32957557]
[1744308347731,1.32947557,1516.7,1516.6,1.31963]
[1744308348025,0.00987557,1516.7,1516.6,1.31963]
[1744308351634,1.31963,1516.6,1516.5,0.00987557]
[1744308351831,6.66863,1516.6,1516.5,5.57e-06]
[1744308352138,15.77663,1516.6,1516.5,5.57e-06]
[1744308352434,21.62863,1516.6,1516.5,5.57e-06]
[1744308353937,16.62863,1516.6,1516.5,5.57e-06]
[1744308356340,3.46083,1516.6,1516.5,1.31972557]
[1744308357031,0.00987557,1516.7,1516.6,1.31963]
[1744308357231,0.00987557,1516.7,1516.6,3.42563]
[1744308357741,1.32941557,1516.7,1516.6,3.42563]
[1744308358137,3.39671557,1516.7,1516.6,3.42563]
[1744308358335,3.39671557,1516.7,1516.6,2.106]
[1744308358736,3.39671557,1516.7,1516.6,3.42563]
[1744308358937,3.39671557,1516.7,1516.6,2.106]
[1744308359443,1.32941557,1516.7,1516.6,3.42563]
[1744308360241,1.31963,1516.6,1516.5,5.57e-06]
[1744308360442,4.52743,1516.6,1516.5,5.57e-06]
[1744308360744,3.39313,1516.6,1516.5,5.57e-06]
[1744308361045,2.0735,1516.6,1516.5,1.31972557]
[1744308361241,1.31963,1516.6,1516.5,5.57e-06]
[1744308361444,1.31963,1516.6,1516.5,1.31969557]
[1744308361745,1.31963,1516.6,1516.5,5.57e-06]
[1744308362143,2.08337557,1516.7,1516.5,5.57e-06]
[1744308362342,0.00987557,1516.7,1516.6,1.31963]
[1744308362541,0.00987557,1516.7,1516.6,5.37843]
[1744308362850,0.00987557,1516.7,1516.6,12.37143]
[1744308363340,5.852,1516.9,1516.8,1.31946]
[1744308363546,5.852,1516.9,1516.8,4.52726]
[1744308363740,6.59136,1517.2,1517.1,1.3192]
[1744308364047,4.52691,1517.2,1517.1,1.3192]
[1744308364247,1.31928,1517.0,1516.9,1.9828]
[1744308364539,1.31928,1517.0,1516.9,1.31937]
[1744308364747,0.00987557,1517.1,1517.0,1.31928]
[1744308364934,10.20411121,1517.5,1517.0,3.30208]
[1744308365242,10.20411121,1517.5,1517.1,4.069]
[1744308365447,12.27731121,1517.5,1517.4,1.31894]
[1744308365849,13.59617121,1517.5,1517.3,1.31894]
[1744308366047,13.59616121,1517.5,1517.2,4.52684]
[1744308366252,1.31894,1517.4,1517.2,6.58332557]
[1744308366442,3.2078,1517.3,1517.2,2.05647557]
[1744308366651,4.52682,1517.3,1517.2,0.00987557]
[1744308366945,17.35738,1517.3,1516.6,3.2078]
[1744308367152,1.31941,1516.9,1516.7,2.0466]
[1744308367348,2.0732,1516.8,1516.7,3.36609]
[1744308367952,8.21536,1517.0,1516.8,1.31945]
[1744308368148,2.0732,1516.9,1516.8,1.31945]
[1744308368350,2.0732,1516.9,1516.7,3.36607]
[1744308368647,3.2078,1517.1,1516.7,5.34545]
[1744308368856,3.2078,1517.1,1517.0,1.31928]
[1744308369150,3.29722,1517.5,1517.0,1.31928]
[1744308369151,3.21767,1517.6,1517.2,3.29771]
[1744308369347,3.21767,1517.6,1517.4,1.31891]
[1744308369655,3.21767,1517.6,1517.5,1.31885]
[1744308370449,0.00987,1517.6,1517.5,1.31885]
[1744308370755,0.00987,1517.6,1517.5,3.45445]
[1744308371348,1.32863,1517.6,1517.5,3.45445]
[1744308371547,1.31885,1517.5,1517.4,0.00987557]
[1744308371747,3.29995,1517.5,1517.4,0.00987557]
[1744308371947,8.29995,1517.5,1517.4,0.00987557]
[1744308372253,10.39335,1517.5,1517.4,0.00987557]
[1744308372758,10.39335,1517.5,1517.4,5.57e-06]
[1744308373056,18.31425,1517.5,1517.4,5.57e-06]
[1744308373358,1.31951,1516.8,1516.7,1.31951]
[1744308373649,1.31951,1516.8,1516.4,8.71248]
[1744308373650,1.31972,1516.5,1516.4,3.2078]
[1744308374148,8.48777,1516.7,1516.3,14.15271024]
[1744308374355,1.31981,1516.4,1516.3,10.00268581]
[1744308374543,8.21481,1516.4,1516.3,10.00268581]
[1744308374857,25.27991,1516.4,1516.3,4.67856138]
[1744308375958,25.27991,1516.4,1516.3,2.98816138]
[1744308376347,25.27991,1516.4,1516.3,1.57531138]
[1744308376549,3.30008,1516.2,1515.8,24.73626982]
[1744308376749,4.52804,1515.9,1515.8,23.04696541]
[1744308376950,17.27604,1515.9,1515.8,21.68481541]
[1744308377155,22.27604,1515.9,1515.8,20.29697541]
[1744308377355,22.27604,1515.9,1515.8,18.93936541]
[1744308377655,22.27604,1515.9,1515.8,16.79336541]
[1744308377851,22.27604,1515.9,1515.0,2.0041]
[1744308377852,34.89104451,1515.9,1514.4,3.2078]
[1744308378054,1.32128,1514.8,1514.7,2.08]
[1744308378252,8.21728,1514.8,1514.7,2.08]
[1744308378445,6.896,1514.8,1514.3,24.84253814]
[1744308378652,1.3215,1514.5,1514.3,26.92253814]
[1744308378849,1.32146,1514.5,1514.4,2.08]
[1744308379251,1.33128557,1514.6,1514.4,8.52752725]
[1744308379450,1.33128557,1514.6,1514.4,9.84906725]
[1744308379656,0.00987557,1514.6,1514.5,1.32146]
[1744308379857,0.00987557,1514.6,1514.5,3.40146]
[1744308380054,0.00987557,1514.6,1514.5,7.08]
[1744308380360,0.00987557,1514.6,1514.5,9.84898725]
[1744308380859,0.00987557,1514.6,1514.5,8.52752725]
[1744308381163,1.33124557,1514.6,1514.5,8.52752725]
[1744308381760,0.00987557,1514.6,1514.5,8.52752725]
[1744308382150,0.00987557,1514.6,1514.3,24.84253814]
[1744308382353,1.32155,1514.4,1514.3,31.29006539]
[1744308382559,1.32153,1514.5,1514.3,24.84253814]
[1744308382862,1.33128557,1514.6,1514.4,1.32149]
[1744308383066,1.33128557,1514.6,1514.5,1.32146]
[1744308383253,1.32146,1514.5,1514.4,4.52933]
[1744308383454,1.32146,1514.5,1514.4,7.76905725]
[1744308383756,1.32146,1514.5,1514.4,7.76907725]
[1744308383955,1.33125557,1514.6,1514.5,1.32146]
[1744308384155,0.00987557,1514.6,1514.5,1.32146]
[1744308385765,1.33124557,1514.6,1514.4,4.52929]
[1744308386057,0.00987557,1514.6,1514.5,1.32146]
[1744308386257,11.2929,1515.2,1514.5,6.32146]
[1744308386463,1.32111,1514.9,1514.8,1.32115]
[1744308386766,1.32111,1514.9,1514.8,6.44755725]
[1744308386962,18.18675,1515.2,1514.8,9.52895]
[1744308387161,1.32118,1514.9,1514.8,5.12637725]
[1744308387866,1.32118,1514.9,1514.8,6.44757725]
[1744308388665,3.30236,1515.1,1514.6,3.2078]
[1744308388869,1.3212,1514.8,1514.7,1.32122]
[1744308389164,1.32116,1514.9,1514.7,1.32122]
[1744308389670,5.47556,1515.1,1514.7,6.44759725]
[1744308389861,1.32116,1514.9,1514.8,1.32118]
[1744308390167,1.3212,1514.8,1514.7,1.32122]
[1744308390467,1.32101,1515.1,1514.7,3.30322]
[1744308390662,1.32101,1515.1,1515.0,1.32102]
[1744308391069,1.32101,1515.1,1515.0,1.32101]
[1744308391270,14.07679557,1515.2,1515.1,1.32094]
[1744308391470,13.41383557,1515.2,1514.7,3.2078]
[1744308391765,9.81298,1515.0,1514.7,5.12637725]
[1744308391966,1.3212,1514.8,1514.7,5.12637725]
[1744308392166,1.32146,1514.5,1514.4,3.29732]
[1744308392366,6.895,1514.8,1514.6,1.33120557]
[1744308392567,1.32129,1514.7,1514.6,1.33120557]
[1744308392967,1.32129,1514.7,1514.6,0.00987557]
[1744308393267,1.32129,1514.7,1514.6,5.13625282]
[1744308393470,1.32129,1514.7,1514.6,0.00987557]
[1744308393672,3.49689,1514.7,1514.6,0.00987557]
[1744308393876,1.32129,1514.7,1514.6,0.00987557]
[1744308394464,9.34889,1514.7,1514.6,0.00987557]
[1744308395670,9.34889,1514.7,1514.6,5.57e-06]
[1744308396273,16.24389,1514.7,1514.6,5.57e-06]
[1744308397970,14.06829,1514.7,1514.6,5.57e-06]
[1744308398170,7.17329,1514.7,1514.6,5.57e-06]
[1744308398574,9.53299,1514.7,1514.6,5.57e-06]
[1744308398986,1.32129,1514.7,1514.6,5.57e-06]
[1744308399185,1.32127,1514.8,1514.7,1.32125]
[1744308399375,1.32127,1514.8,1514.7,3.65645]
[1744308399575,6.51055,1515.0,1514.7,2.3352]
[1744308399777,1.32116,1514.9,1514.8,1.32113]
[1744308400076,1.32109,1515.0,1514.9,1.32111]
[1744308400379,16.05055,1515.1,1514.7,6.51096]
[1744308400581,1.32108,1515.0,1514.9,1.32105]
[1744308400775,1.32108,1515.0,1514.7,6.51087]
[1744308400776,1.3212,1514.8,1514.7,5.12637725]
[1744308401277,1.32129,1514.7,1514.6,5.57e-06]
[1744308401483,8.21729,1514.7,1514.6,5.57e-06]
[1744308402183,1.32109,1515.0,1514.7,3.30322]
[1744308402378,1.32111,1514.9,1514.8,4.52895]
[1744308402581,3.93342275,1515.1,1514.7,2.1699]
[1744308402782,1.32129,1514.7,1514.6,5.57e-06]
[1744308403087,3.30385,1514.5,1513.9,6.94910668]
[1744308403388,1.32188,1514.1,1513.9,8.10440668]
[1744308403587,1.32188,1514.1,1514.0,1.32187]
[1744308403784,1.32186,1514.1,1514.0,1.32186]
[1744308403979,1.32186,1514.1,1514.0,6.32186]
[1744308404195,1.3219,1514.0,1513.9,5.79195557]
[1744308404486,1.32189,1514.1,1514.0,1.3219]
[1744308404690,3.31436557,1514.2,1513.9,4.46997557]
[1744308404691,1.3219,1514.0,1513.9,4.46997557]
[1744308405394,1.3219,1514.0,1513.9,2.17977557]
[1744308405894,1.3219,1514.0,1513.9,0.00987557]
[1744308406098,3.5429,1514.0,1513.9,0.00987557]
[1744308406288,1.3219,1514.0,1513.9,0.00987557]
[1744308406484,1.3219,1514.0,1513.9,1.33185557]
[1744308406994,1.32185,1514.1,1514.0,1.3219]
[1744308407291,1.32189,1514.1,1514.0,1.3219]
[1744308407492,0.00987557,1514.2,1514.1,1.32181]
[1744308407687,0.00987557,1514.2,1514.1,3.54681]
[1744308407994,4.52924,1514.6,1514.5,1.32146]
[1744308408197,1.32133,1514.7,1514.6,1.32133]
[1744308408399,2.1671,1515.0,1514.6,5.0]
[1744308408598,1.3211,1515.0,1514.7,3.2078]
[1744308408802,1.32113,1514.9,1514.8,1.32114]
[1744308409096,1.32103,1515.0,1514.9,1.32103]
[1744308409301,1.33090557,1515.0,1514.9,4.52883]
[1744308409497,0.00987557,1515.0,1514.9,4.52883]
[1744308409701,1.33089557,1515.0,1514.9,4.52883]
[1744308410001,0.00987557,1515.0,1514.9,1.32103]
[1744308410196,1.33089557,1515.0,1514.9,1.32103]
[1744308410396,0.00987557,1515.0,1514.9,4.52883]
[1744308410800,0.00987557,1515.0,1514.9,1.32111]
[1744308411600,0.00987557,1515.0,1514.7,3.55614557]
[1744308411899,1.32117,1514.9,1514.7,3.55609557]
[1744308412095,1.32118,1514.9,1514.8,1.32119]
[1744308412300,0.00987557,1515.0,1514.9,1.32111]
[1744308412795,0.00987557,1515.0,1514.9,8.67511]
[1744308413096,7.68704826,1515.1,1515.0,1.32102]
[1744308413295,10.20411121,1515.3,1515.2,1.32085]
[1744308413692,10.20411121,1515.3,1515.2,9.52865]
[1744308414401,1.3205,1515.6,1515.5,1.32053]
[1744308414603,2.2109,1515.8,1515.3,8.8735]
[1744308414802,0.00987557,1515.7,1515.5,4.52831]
[1744308415102,0.00987557,1515.7,1515.5,1.32059]
[1744308415103,1.3205,1515.6,1515.5,1.32059]
[1744308415299,1.32059,1515.5,1515.4,0.00987557]
[1744308415499,3.53149,1515.5,1515.4,0.00987557]
[1744308416001,11.73929,1515.5,1515.4,0.00987557]
[1744308416205,3.30245,1515.1,1514.5,3.67691045]
[1744308416397,1.32125,1514.8,1514.7,2.3814]
[1744308416700,1.32125,1514.8,1514.7,3.70269]
[1744308417096,1.32118,1514.9,1514.8,1.3212]
[1744308417305,1.32129,1514.7,1514.6,0.00987557]
[1744308417801,6.32129,1514.7,1514.6,0.00987557]
[1744308418188,1.32129,1514.7,1514.6,0.00987557]
[1744308418900,6.32129,1514.7,1514.6,0.00987557]
[1744308419197,1.32154,1514.5,1514.3,2.21]
[1744308419396,6.52060557,1514.9,1514.3,5.4178]
[1744308419601,1.32132,1514.7,1514.3,8.72187]
[1744308419802,1.32129,1514.7,1514.6,1.32131]
[1744308420008,1.32129,1514.7,1514.4,2.21]
[1744308420301,2.3066,1514.8,1514.6,2.298]
[1744308420302,3.62784,1514.8,1514.6,2.298]
[1744308420504,1.3212,1514.8,1514.7,1.32123]
[1744308420707,1.33101557,1514.9,1514.8,1.3212]
[1744308420995,0.00987557,1514.9,1514.8,1.3212]
[1744308421200,0.00987557,1514.9,1514.8,8.6192]
[1744308421900,1.32081,1515.3,1515.2,1.32085]
[1744308422203,6.886,1515.4,1515.3,1.32068]
[1744308422204,1.32068,1515.4,1515.3,1.32068]
[1744308422399,10.20411121,1515.6,1515.3,3.2078]
[1744308422700,1.32059,1515.5,1515.4,3.61868]
[1744308422896,12.69391472,1515.5,1515.4,2.298]
[1744308423096,12.69391472,1515.5,1515.4,8.61868]
[1744308423302,2.85580184,1515.5,1515.4,8.61868]
[1744308423498,0.00987557,1515.6,1515.5,1.32059]
[1744308423797,27.98223463,1516.3,1515.5,1.32059]
[1744308423798,20.37061188,1516.3,1515.5,18.02097]
[1744308423990,20.37061188,1516.3,1516.2,1.31998]
[1744308424197,20.37061188,1516.3,1515.9,3.2078]
[1744308424394,2.3275,1516.2,1516.0,1.32013]
[1744308424592,3.64751,1516.2,1516.0,1.32013]
[1744308424897,1.32007,1516.1,1516.0,2.2185]
[1744308425204,3.64757,1516.1,1516.0,2.2185]
[1744308425401,1.32015,1516.0,1515.9,0.00987557]
[1744308425601,3.64765,1516.0,1515.9,0.00987557]
[1744308425791,2.3275,1516.0,1515.9,0.00987557]
[1744308425992,2.2691,1516.2,1515.9,0.00987557]
[1744308426198,2.2691,1516.2,1516.1,3.2078]
[1744308426199,3.58298,1516.2,1516.1,3.2078]
[1744308426402,2.263,1516.2,1516.0,3.2078]
[1744308426593,20.38048745,1516.3,1516.1,3.67647]
[1744308426800,22.64348745,1516.3,1515.9,4.53784557]
[1744308427000,22.64348745,1516.3,1516.1,1.32004]
[1744308427203,23.96343745,1516.3,1516.2,1.31998]
[1744308427404,22.64348745,1516.3,1516.0,2.3564]
[1744308427604,6.47170956,1516.2,1516.1,1.32006]
[1744308427807,1.32007,1516.1,1516.0,3.67654]
[1744308428003,3.58307,1516.1,1516.0,3.67654]
[1744308428307,5.15169956,1516.2,1516.1,1.32007]
[1744308428507,5.15169956,1516.2,1516.1,4.52787]
[1744308428898,5.15169956,1516.2,1516.1,9.52787]
[1744308429099,9.56e-06,1516.2,1516.1,17.73307]
[1744308429499,3.07e-06,1516.3,1516.2,1.31998]
[1744308429803,15.39442468,1517.2,1517.1,1.3192]
[1744308430411,15.39442468,1517.2,1517.1,3.5483]
[1744308430900,23.60222468,1517.2,1516.6,5.992]
[1744308431098,1.31981,1516.4,1516.3,3.2078]
[1744308431295,1.31976,1516.5,1516.3,6.75677]
[1744308431496,3.29917,1516.6,1516.1,3.2078]
[1744308431794,2.3261,1516.4,1516.1,3.2078]
[1744308432104,0.00987557,1516.4,1516.1,3.21767557]
[1744308432307,0.00987557,1516.4,1516.2,3.2078]
[1744308432601,0.00987557,1516.4,1516.3,1.31989]
[1744308433007,2.00748913,1516.4,1516.1,0.00987557]
[1744308433202,2.00748913,1516.4,1516.1,1.32993557]
[1744308433203,2.322,1516.3,1516.1,1.32993557]
[1744308433405,1.31998,1516.2,1516.1,0.00987557]
[1744308433800,1.32027,1515.9,1515.7,2.2539]
[1744308434001,3.2078,1515.9,1515.3,3.2078]
[1744308434302,1.32057,1515.6,1515.4,3.57458]
[1744308434508,3.64239,1515.8,1515.6,1.32047]
[1744308434705,5.63999799,1515.8,1515.7,1.32041]
[1744308434910,2.322,1515.8,1515.6,1.32044]
[1744308435212,3.6217,1516.1,1515.7,2.2618]
[1744308435408,5.61930799,1516.1,1515.9,1.32022]
[1744308435604,2.3515,1516.1,1516.0,1.32015]
[1744308435903,3.57466,1516.3,1515.9,3.2078]
[1744308436110,0.00987557,1516.4,1516.1,3.2078]
[1744308436312,0.00987557,1516.4,1516.3,1.31989]
[1744308436505,0.00987557,1516.4,1516.3,4.52769]
[1744308436702,0.00987557,1516.4,1516.3,9.52769]
[1744308437206,5.57e-06,1516.4,1516.3,9.52769]
[1744308437407,5.57e-06,1516.4,1516.3,11.86919]
[1744308437805,5.57e-06,1516.4,1516.3,6.86919]
[1744308438004,5.57e-06,1516.4,1516.3,11.86919]
[1744308438199,5.57e-06,1516.4,1516.3,9.52769]
[1744308438404,5.57e-06,1516.4,1516.3,13.98139]
[1744308439511,5.57e-06,1516.4,1516.3,19.97339]
[1744308439708,4.4995,1517.4,1516.6,3.29909]
[1744308439909,2.3386,1517.3,1517.2,1.31905]
[1744308440109,2.3386,1517.3,1517.0,2.3435]
[1744308440410,5.65529799,1517.3,1517.1,1.31917]
[1744308440605,4.33620799,1517.3,1517.0,2.3435]
[1744308440806,1.99760799,1517.3,1517.1,3.2078]
[1744308441012,2.36097557,1517.4,1517.3,1.31902]
[1744308441219,4.35858356,1517.4,1517.3,1.31902]
[1744308441605,0.00987557,1517.4,1517.3,1.31902]
[1744308441807,0.00987557,1517.4,1517.3,15.51882]
[1744308441808,5.57e-06,1517.4,1517.3,15.51882]
[1744308442009,5.57e-06,1517.4,1517.3,17.87922]
[1744308443917,5.57e-06,1517.4,1517.3,12.87922]
[1744308444724,1.99761356,1517.4,1517.3,1.31902]
[1744308445421,1.99761356,1517.4,1517.3,4.52682]
[1744308445622,5.57e-06,1517.4,1517.3,4.52682]
[1744308445817,1.99761356,1517.4,1517.3,1.31902]
[1744308446015,5.57e-06,1517.4,1517.3,1.31902]
[1744308446415,1.99761356,1517.4,1517.3,1.31902]
[1744308446616,3.31655356,1517.4,1517.2,2.2566]
[1744308446820,6.50536,1517.3,1516.5,9.29117]
[1744308447019,1.3194,1516.9,1516.8,1.31946]
[1744308447220,6.50584,1517.1,1516.7,1.31948]
[1744308447413,1.31944,1516.9,1516.7,1.31951]
[1744308447620,1.31944,1516.9,1516.5,2.4243]
[1744308447621,1.31949,1516.8,1516.5,2.4243]
[1744308447923,1.31948,1516.8,1516.7,1.31953]
[1744308448125,1.31936,1517.0,1516.8,1.31941]
[1744308448326,1.31941,1516.9,1516.7,1.31947]
[1744308448624,1.31925,1517.1,1516.6,3.29905]
[1744308448826,1.31933,1517.0,1516.8,1.31941]
[1744308449019,6.50581,1517.1,1516.5,0.00987557]
[1744308449221,7.7905,1517.3,1516.6,6.50689]
[1744308449421,1.31954,1516.7,1516.5,0.00987557]
[1744308449730,3.29822,1517.0,1516.5,0.00987557]
[1744308450028,6.50626,1516.9,1516.5,1.32955557]
[1744308450413,6.50626,1516.9,1516.5,0.00987557]
[1744308450414,1.31963,1516.6,1516.5,0.00987557]
[1744308450821,2.3157,1516.7,1516.5,0.00987557]
[1744308451024,2.3157,1516.7,1516.6,1.31963]
[1744308451237,4.52723,1516.9,1516.7,1.31949]
[1744308451821,4.52723,1516.9,1516.5,5.62154557]
[1744308452030,1.31948,1516.8,1516.5,2.32237557]
[1744308452330,4.52724,1516.9,1516.7,1.3195]
[1744308452525,1.3193,1517.0,1516.8,1.31946]
[1744308452730,3.68616,1517.1,1516.9,1.31937]
[1744308452928,2.3669,1517.1,1517.0,1.31928]
[1744308453129,2.3669,1517.1,1516.7,2.3125]
[1744308453328,1.31958,1516.7,1516.5,0.00987557]
[1744308453533,1.31963,1516.6,1516.5,0.00987557]
[1744308454039,10.76153,1516.6,1516.5,0.00987557]
[1744308454230,1.31991,1516.3,1516.0,2.3929]
[1744308454531,1.31996,1516.3,1516.1,1.31999]
[1744308454731,10.0758,1516.5,1516.0,5.69326]
[1744308454930,4.4419,1516.6,1516.2,3.29996]
[1744308455232,3.2078,1516.8,1516.4,3.29949]
[1744308455430,4.52726,1516.8,1516.7,1.31954]
[1744308455630,0.00987557,1516.8,1516.7,1.31954]
[1744308455830,8.21767557,1516.8,1516.3,3.2078]
[1744308456034,1.31966,1516.6,1516.3,5.6007]
[1744308456239,3.2078,1516.6,1516.3,2.3929]
[1744308456534,1.31981,1516.4,1516.2,0.00987557]
[1744308456835,1.31987,1516.4,1516.2,1.32978557]
[1744308457037,2.1704,1516.5,1516.2,0.00987557]
[1744308457335,3.49012,1516.5,1516.4,1.31981]
[1744308457535,2.1704,1516.5,1516.4,1.31981]
[1744308458034,3.49012,1516.5,1516.4,1.31981]
[1744308458230,7.1704,1516.5,1516.2,0.00987557]
[1744308458435,4.52769,1516.3,1516.2,0.00987557]
[1744308459239,1.32024,1515.9,1515.8,1.32028]
[1744308459442,11.50773,1516.3,1515.9,1.3202]
[1744308459443,1.32018,1516.0,1515.9,1.3202]
[1744308459942,1.32026,1515.9,1515.8,1.32028]
[1744308460139,6.50798,1516.1,1515.7,2.2796]
[1744308460440,6.50798,1516.1,1515.2,7.64280659]
[1744308460441,3.30083,1515.8,1515.2,10.1701]
[1744308460641,1.32048,1515.7,1515.5,1.32059]
[1744308460832,1.32038,1515.8,1515.7,1.32041]
[1744308461037,3.2078,1515.9,1515.7,1.32038]
[1744308461238,3.2078,1515.9,1515.7,1.32034]
[1744308461438,3.2078,1515.9,1515.8,1.32033]
[1744308461745,1.3202,1516.0,1515.6,19.37003]
[1744308462040,1.3202,1516.0,1515.9,1.32024]
[1744308462241,1.32022,1516.0,1515.8,1.32026]
[1744308462436,1.32024,1515.9,1515.7,3.59995]
[1744308462642,1.32021,1516.0,1515.9,1.32024]
[1744308462843,4.53774557,1516.1,1516.0,1.32015]
[1744308463145,1.32018,1516.0,1515.9,1.32022]
[1744308463545,1.3202,1516.0,1515.9,1.32024]
[1744308463947,3.705,1516.0,1515.8,1.32028]
[1744308464140,3.705,1516.0,1515.9,1.32024]
[1744308464141,2.3848,1516.0,1515.9,1.32024]
[1744308464443,3.70495,1516.0,1515.9,1.32024]
[1744308464642,2.3848,1516.0,1515.9,1.32024]
[1744308465032,3.21767557,1516.1,1515.7,8.88168]
[1744308465232,1.32027,1515.9,1515.7,2.2796]
[1744308465438,2.4044,1516.0,1515.9,1.32024]
[1744308466145,4.53774557,1516.1,1516.0,1.32015]
[1744308466338,0.00987557,1516.1,1516.0,1.32015]
[1744308466844,5.57e-06,1516.1,1516.0,9.52795]
[1744308467033,3.2078,1516.7,1516.3,1.31985]
[1744308467238,1.3197,1516.6,1516.5,1.3197]
[1744308467445,2.4044,1516.6,1516.5,1.3197]
[1744308468245,0.00987557,1516.7,1516.6,1.31963]
[1744308468640,0.00987557,1516.7,1516.6,6.31963]
[1744308468837,0.00987557,1516.7,1516.6,8.58123]
[1744308469740,0.00987557,1516.7,1516.6,3.58123]
[1744308472043,2.36437557,1516.7,1516.6,3.58123]
[1744308472243,3.68391557,1516.7,1516.6,1.31963]
[1744308472439,2.36437557,1516.7,1516.6,1.31963]
[1744308472945,3.68391557,1516.7,1516.6,1.31963]
[1744308473151,1.31972,1516.5,1516.4,0.00987557]
[1744308473347,1.31969,1516.6,1516.4,1.32960557]
[1744308473552,2.3545,1516.5,1516.4,1.32960557]
[1744308473748,5.5623,1516.5,1516.4,3.56778557]
[1744308473956,6.88202,1516.5,1516.4,0.00987557]
[1744308474144,11.88202,1516.5,1516.4,0.00987557]
[1744308474452,1.32005,1516.2,1516.1,1.32007]
[1744308474954,5.4303,1516.3,1515.6,110.6838]
[1744308475144,2.2225,1516.1,1516.0,1.32007]
[1744308475345,4.52759,1516.5,1516.1,3.30003]
[1744308475544,1.31979,1516.5,1516.4,1.31981]
[1744308475750,3.54229,1516.5,1516.4,1.31981]
[1744308476151,2.2225,1516.5,1516.4,1.31981]
[1744308476352,5.4303,1516.5,1516.3,2.1177]
[1744308476553,1.31981,1516.4,1515.9,0.00987557]
[1744308476749,1.32001,1516.2,1516.1,1.32003]
[1744308476943,5.4303,1516.3,1516.2,1.31998]
[1744308477149,7.7828,1516.6,1516.5,1.31972]
[1744308477349,1.31979,1516.5,1516.4,1.3198]
[1744308477549,8.81311,1516.5,1516.2,1.31995]
[1744308477751,2.2141,1516.5,1516.1,2.2138]
[1744308477956,1.31992,1516.3,1516.2,1.31991]
[1744308478144,1.31998,1516.2,1516.1,2.2138]
[1744308478349,1.32015,1516.0,1515.9,0.00987557]
[1744308478748,6.32015,1516.0,1515.9,0.00987557]
[1744308478950,8.53425,1516.0,1515.9,0.00987557]
[1744308479250,2.2141,1516.0,1515.9,1.33011557]
[1744308479450,3.2078,1516.3,1515.9,5.00987557]
[1744308479645,3.2078,1516.3,1516.2,1.31993]
[1744308479646,1.31993,1516.3,1516.2,1.31993]
[1744308479851,1.32007,1516.1,1516.0,2.2138]
[1744308480065,1.32007,1516.1,1516.0,3.53395]
[1744308480249,3.53415,1516.2,1516.1,1.32007]
[1744308480448,2.2141,1516.2,1516.1,1.32007]
[1744308480845,2.2141,1516.2,1515.9,0.00987557]
[1744308481045,4.52795,1516.0,1515.9,0.00987557]
[1744308481856,9.52795,1516.0,1515.9,0.00987557]
[1744308482052,4.52795,1516.0,1515.9,0.00987557]
[1744308482255,11.76835,1516.0,1515.9,0.00987557]
[1744308482856,11.76835,1516.0,1515.2,1.32079]
[1744308482857,10.4482,1516.0,1515.2,1.32079]
[1744308483057,3.2078,1515.5,1515.3,1.32072]
[1744308483257,2.2404,1515.4,1515.2,3.58919]
[1744308483455,1.32076,1515.3,1515.2,3.58919]
[1744308483650,3.30213,1515.2,1514.7,2.1516]
[1744308483852,3.2078,1514.8,1514.2,19.68842351]
[1744308484053,3.53522,1514.7,1514.5,1.32144]
[1744308484259,2.2139,1514.7,1514.4,2.0882837]
[1744308484557,1.32146,1514.5,1514.4,2.0882837]
[1744308484749,1.32146,1514.5,1514.4,0.0065837]
[1744308484750,8.18446,1514.5,1514.4,0.0065837]
[1744308484954,15.39836,1514.5,1514.4,0.0065837]
[1744308485255,10.39836,1514.5,1514.4,0.0065837]
[1744308485453,2.2139,1514.5,1514.4,1.3281337]
[1744308485752,2.2139,1514.5,1514.4,0.0065837]
[1744308485958,8.53536,1514.5,1514.4,0.0065837]
[1744308486359,3.53536,1514.5,1514.4,0.0065837]
[1744308486959,8.53536,1514.5,1514.0,14.83753508]
[1744308487159,4.52961,1514.1,1514.0,14.83753508]
[1744308487560,3.2078,1514.1,1514.0,14.83753508]
[1744308487860,4.52961,1514.1,1514.0,14.83753508]
[1744308488663,6.65341,1514.1,1514.0,14.83753508]
[1744308490066,1.32198,1513.9,1513.8,1.32203]